bitfinex-derivatives/quotes_BTCF0:USTF0_20210707
["timestamp","ask_amount","ask_price","bid_price","bid_amount"]
[1625630891413,3.93838409,34461.0,34460.0,0.00455899]
[1625630891530,3.93838409,34461.0,34460.0,0.0872]
[1625630892074,4.17895953,34461.0,34459.0,0.49969672]
[1625630892432,2.21821362,34460.0,34459.0,0.49969672]
[1625630892794,2.21821362,34460.0,34459.0,0.50425189]
[1625630892915,2.21821362,34460.0,34459.0,0.17112074]
[1625630893155,2.21821362,34460.0,34459.0,0.50435997]
[1625630893816,2.21821362,34460.0,34459.0,0.17112074]
[1625630894777,3.41264461,34460.0,34459.0,0.17112074]
[1625630895017,3.41264461,34460.0,34459.0,0.00455517]
[1625630895498,3.41264461,34460.0,34459.0,0.17125611]
[1625630895499,2.21821362,34460.0,34459.0,0.17125611]
[1625630895741,2.21821362,34460.0,34459.0,0.50464839]
[1625630896101,2.21821362,34460.0,34459.0,0.17125611]
[1625630896281,2.21821362,34460.0,34459.0,0.50448148]
[1625630896462,2.21821362,34460.0,34459.0,1.17096993]
[1625630897002,2.21821362,34460.0,34459.0,0.50448148]
[1625630897181,2.21821362,34460.0,34459.0,0.59138148]
[1625630897425,2.21821362,34460.0,34459.0,0.50448148]
[1625630897666,2.54502362,34460.0,34459.0,0.50448148]
[1625630898809,3.73972306,34460.0,34459.0,0.50491806]
[1625630899049,3.73972306,34460.0,34459.0,0.00455517]
[1625630899050,5.10515858,34460.0,34459.0,0.00455517]
[1625630899168,5.11829166,34460.0,34459.0,0.00455517]
[1625630899292,5.11829166,34460.0,34458.0,0.24057544]
[1625630899590,4.7795651,34459.0,34458.0,0.24057544]
[1625630899712,4.79269803,34459.0,34458.0,0.24057544]
[1625630899829,3.42718115,34459.0,34458.0,0.24057544]
[1625630899948,3.42718115,34459.0,34458.0,4.29287544]
[1625630900069,3.42718115,34459.0,34458.0,4.29743082]
[1625630900249,3.41404822,34459.0,34458.0,4.29743082]
[1625630900429,3.41404822,34459.0,34458.0,0.24513082]
[1625630900549,3.72880822,34459.0,34458.0,0.24513082]
[1625630900671,3.72880822,34459.0,34458.0,0.41234351]
[1625630901031,3.74194119,34459.0,34458.0,0.41234351]
[1625630901392,3.74194119,34459.0,34458.0,0.74786265]
[1625630901631,3.74194119,34459.0,34458.0,0.58064996]
[1625630901874,3.74194119,34459.0,34458.0,0.74850107]
[1625630902595,5.10804973,34459.0,34458.0,0.74850107]
[1625630902896,5.10804973,34459.0,34458.0,0.24513082]
[1625630905118,2.88885012,34459.0,34458.0,0.24513082]
[1625630906680,2.57409012,34459.0,34458.0,0.24513082]
[1625630907221,0.01313297,34459.0,34458.0,0.24513082]
[1625630907464,4.7976106,34459.0,34458.0,0.24513082]
[1625630907583,4.78447763,34459.0,34458.0,0.24513082]
[1625630907705,4.78447763,34459.0,34458.0,0.41304626]
[1625630907824,4.79761048,34459.0,34458.0,0.41304626]
[1625630909211,4.79761048,34459.0,34458.0,0.74859816]
[1625630909450,4.78447763,34459.0,34458.0,1.41901414]
[1625630909928,3.41755724,34459.0,34458.0,2.42505104]
[1625630911850,3.43066961,34459.0,34458.0,2.42505104]
[1625630912090,4.78519289,34459.0,34458.0,2.42505104]
[1625630913113,4.7983051,34459.0,34458.0,2.42505104]
[1625630913236,4.7983051,34459.0,34458.0,1.41901414]
[1625630915280,4.78519289,34459.0,34458.0,2.42646431]
[1625630917802,3.41755724,34459.0,34458.0,2.42646431]
[1625630918825,3.41755724,34459.0,34458.0,3.60194558]
[1625630923577,4.78608045,34459.0,34458.0,3.60194558]
[1625630923817,4.78608045,34459.0,34458.0,2.42646431]
[1625630924057,4.78608045,34459.0,34458.0,1.41901414]
[1625630924237,8.40678045,34459.0,34458.0,1.41901414]
[1625630925557,9.94677059,34459.0,34458.0,1.41901414]
[1625630926338,8.40678045,34459.0,34458.0,1.41901414]
[1625630926580,9.94676854,34459.0,34458.0,1.41901414]
[1625630927601,9.94676854,34459.0,34458.0,0.74822367]
[1625630928080,9.94676854,34459.0,34458.0,1.08546551]
[1625630928562,9.94676854,34459.0,34458.0,1.42258844]
[1625630929464,9.94676854,34459.0,34458.0,0.74822367]
[1625630929945,9.94676854,34459.0,34458.0,1.08553708]
[1625630930128,9.94676854,34459.0,34458.0,0.75111159]
[1625630930369,9.94676854,34459.0,34458.0,0.51050655]
[1625630930910,9.94676854,34459.0,34458.0,1.18525762]
[1625630931393,9.94676854,34459.0,34458.0,0.51050655]
[1625630931812,6.32606854,34459.0,34458.0,0.51050655]
[1625630931993,4.78608045,34459.0,34458.0,2.19693728]
[1625630932354,4.78608045,34459.0,34458.0,6.77543728]
[1625630932474,4.78608045,34459.0,34458.0,7.95514746]
[1625630934277,4.78608045,34459.0,34458.0,8.1957229]
[1625630934938,4.78608045,34459.0,34458.0,7.01601272]
[1625630936259,4.78608045,34459.0,34458.0,8.43579676]
[1625630939388,4.78608045,34459.0,34458.0,8.19508676]
[1625630940771,4.78608045,34459.0,34458.0,8.19053138]
[1625630940955,4.79917524,34459.0,34458.0,8.19510172]
[1625630942274,4.78608045,34459.0,34458.0,8.19510172]
[1625630942395,3.41755724,34459.0,34458.0,9.54614525]
[1625630945342,3.41755724,34459.0,34458.0,9.69014525]
[1625630945758,3.43065168,34459.0,34458.0,9.69014525]
[1625630946898,4.79974816,34459.0,34458.0,9.69014525]
[1625630948100,4.79974816,34459.0,34458.0,8.33910172]
[1625630949545,4.79974816,34459.0,34458.0,9.6932484]
[1625630952550,3.43065168,34459.0,34458.0,9.6932484]
[1625630952669,3.41755724,34459.0,34458.0,9.6932484]
[1625630954774,3.43066709,34459.0,34458.0,9.6932484]
[1625630954954,4.80009076,34459.0,34458.0,9.6932484]
[1625630955677,4.80009076,34459.0,34458.0,8.33910172]
[1625630956338,4.80009076,34459.0,34458.0,9.69243273]
[1625630960732,3.41755724,34459.0,34458.0,9.69243273]
[1625630962535,3.4306665,34459.0,34458.0,9.69243273]
[1625630964462,4.80018554,34459.0,34458.0,9.69243273]
[1625630966988,4.80018554,34459.0,34458.0,8.33910172]
[1625630968488,4.80018554,34459.0,34458.0,9.68992622]
[1625630969448,4.80018554,34459.0,34458.0,5.11142622]
[1625630969688,4.80018554,34459.0,34458.0,3.76060172]
[1625630969928,4.80018554,34459.0,34458.0,2.58152768]
[1625630970109,6.34126896,34459.0,34458.0,2.58152768]
[1625630971676,6.34126896,34459.0,34458.0,0.58142768]
[1625630971975,6.34126896,34459.0,34458.0,0.38914578]
[1625630972278,6.34126896,34459.0,34455.0,1.18249892]
[1625630972515,4.35032185,34456.0,34454.0,1.42337481]
[1625630972694,2.30938146,34455.0,34454.0,1.42337481]
[1625630972814,2.3225113,34455.0,34454.0,1.42337481]
[1625630972934,2.3225113,34455.0,34454.0,0.24057544]
[1625630973056,2.3225113,34455.0,34454.0,0.24513389]
[1625630974497,2.56308674,34455.0,34454.0,0.24513389]
[1625630974620,2.81502674,34455.0,34454.0,0.24513389]
[1625630976484,2.56308674,34455.0,34454.0,0.24513389]
[1625630977083,2.5499569,34455.0,34454.0,0.24513389]
[1625630985081,1.18004131,34455.0,34454.0,1.84953422]
[1625630985323,0.24057544,34455.0,34454.0,1.84953422]
[1625630985684,1.36869303,34458.0,34454.0,1.84953422]
[1625630985929,1.36869303,34458.0,34455.0,0.00455746]
[1625630986042,1.84978859,34461.0,34457.0,1.34903796]
[1625630986285,0.48115088,34461.0,34455.0,1.52222516]
[1625630986526,0.48115088,34461.0,34460.0,1.34784706]
[1625630986645,0.48115088,34461.0,34460.0,1.5884225]
[1625630987127,0.48115088,34461.0,34460.0,1.59297928]
[1625630987245,0.48115088,34461.0,34460.0,5.73047928]
[1625630987788,0.48115088,34461.0,34460.0,5.7259225]
[1625630990976,0.48115088,34461.0,34460.0,1.34784706]
[1625630991100,1.84950938,34461.0,34456.0,1.35000004]
[1625630991398,1.84950938,34461.0,34460.0,0.59114538]
[1625630991399,0.71323088,34461.0,34460.0,0.59114538]
[1625630991518,5.64513088,34461.0,34460.0,0.59114538]
[1625630991639,8.55336818,34461.0,34460.0,0.08444934]
[1625630991758,8.56648912,34461.0,34460.0,0.08444934]
[1625630992000,8.56648912,34461.0,34460.0,0.25341783]
[1625630992180,8.56648912,34461.0,34459.0,0.59144919]
[1625630992419,2.90835411,34460.0,34459.0,0.59144919]
[1625630992539,2.92147801,34460.0,34459.0,0.59144919]
[1625630992660,3.16205345,34460.0,34459.0,0.08449822]
[1625630992899,4.35965091,34460.0,34458.0,0.59164033]
[1625630993140,0.25369934,34460.0,34459.0,0.25351882]
[1625630993438,4.35951204,34460.0,34459.0,0.25351882]
[1625630993620,4.35951204,34460.0,34459.0,0.59154943]
[1625630994643,4.35951204,34460.0,34459.0,0.50704316]
[1625630994881,4.35951204,34460.0,34456.0,1.18290478]
[1625630995002,4.34638814,34460.0,34456.0,1.18290478]
[1625630995182,1.19747893,34457.0,34456.0,1.18290478]
[1625630995302,1.19747893,34457.0,34456.0,2.53364616]
[1625630995482,1.19747893,34457.0,34456.0,2.53820531]
[1625630995602,1.19735825,34458.0,34456.0,2.53820531]
[1625630995902,1.19735825,34458.0,34457.0,1.18169992]
[1625630996023,1.19735825,34458.0,34457.0,2.53672362]
[1625630996503,1.19735825,34458.0,34457.0,1.18625905]
[1625630997290,2.56584709,34458.0,34457.0,1.18625905]
[1625630997645,2.56584709,34458.0,34457.0,0.00455913]
[1625630998669,2.56584709,34458.0,34456.0,0.00455955]
[1625630998789,2.90723709,34458.0,34456.0,0.00455955]
[1625630998910,2.56601366,34457.0,34456.0,0.00455955]
[1625630999151,2.56601366,34457.0,34455.0,0.00455964]
[1625630999452,2.28666317,34456.0,34453.0,1.18327051]
[1625630999631,2.28666317,34456.0,34437.0,2.02846374]
[1625630999632,3.82631728,34456.0,34455.0,0.25374993]
[1625630999753,3.83944203,34456.0,34455.0,0.25374993]
[1625630999871,3.83944203,34456.0,34454.0,0.33833324]
[1625630999872,3.83944203,34456.0,34454.0,0.08462559]
[1625630999992,7.52484203,34456.0,34454.0,0.08462559]
[1625631000113,1.19730617,34455.0,34453.0,0.08460391]
[1625631000293,2.73665095,34455.0,34453.0,0.08460391]
[1625631000413,2.73665095,34455.0,34452.0,0.33841563]
[1625631000414,2.73672667,34454.0,34452.0,0.08462906]
[1625631000593,2.74985229,34454.0,34452.0,0.08462906]
[1625631000713,3.21785758,34453.0,34452.0,0.08462906]
[1625631000896,3.230983,34453.0,34452.0,0.08462906]
[1625631001972,4.2573075,34453.0,34452.0,0.08462906]
[1625631002214,4.2573075,34453.0,34451.0,0.42322422]
[1625631002516,3.76305869,34452.0,34451.0,0.33851625]
[1625631002696,4.00363413,34452.0,34451.0,0.33851625]
[1625631002876,4.01675986,34452.0,34451.0,0.33851625]
[1625631003116,2.47736563,34452.0,34451.0,0.33851625]
[1625631003237,2.4642399,34452.0,34451.0,0.33851625]
[1625631004201,2.47736534,34452.0,34451.0,0.33851625]
[1625631004559,4.01626315,34452.0,34451.0,0.33851625]
[1625631004739,2.47736534,34452.0,34451.0,0.33851625]
[1625631004982,2.47736534,34452.0,34451.0,0.42354975]
[1625631004983,4.01627041,34452.0,34451.0,0.42354975]
[1625631005520,4.01627041,34452.0,34451.0,0.0850335]
[1625631005879,4.00314497,34452.0,34451.0,0.0850335]
[1625631006003,2.4642399,34452.0,34451.0,0.0850335]
[1625631006123,2.4642399,34452.0,34451.0,0.42532735]
[1625631006362,2.4642399,34452.0,34451.0,0.0850335]
[1625631007743,2.4642399,34452.0,34451.0,0.42465869]
[1625631008282,2.46294652,34452.0,34451.0,0.42465869]
[1625631008524,2.46294652,34452.0,34451.0,0.33962519]
[1625631009485,2.46294652,34452.0,34451.0,0.42446429]
[1625631009665,2.46294652,34452.0,34451.0,0.33962519]
[1625631010387,2.46294652,34452.0,34451.0,0.42444988]
[1625631011349,2.46294652,34452.0,34446.0,1.18741973]
[1625631011350,2.46294652,34452.0,34450.0,0.42409587]
[1625631011589,2.2205417,34451.0,34450.0,0.3392767]
[1625631013271,2.2205417,34451.0,34450.0,0.42397542]
[1625631014293,2.2205417,34451.0,34450.0,0.3392767]
[1625631014533,3.58687153,34451.0,34450.0,0.3392767]
[1625631016157,3.58687153,34451.0,34448.0,1.01552454]
[1625631016399,1.02477257,34449.0,34448.0,1.01552454]
[1625631016762,1.26534801,34449.0,34448.0,1.01552454]
[1625631017608,1.26534801,34449.0,34448.0,2.19968976]
[1625631017968,0.24057544,34449.0,34448.0,2.19968976]
[1625631019291,1.2653933,34449.0,34448.0,2.19968976]
[1625631019591,2.46100534,34449.0,34448.0,1.01552454]
[1625631020377,1.2653933,34449.0,34448.0,1.01552454]
[1625631020671,1.2653933,34449.0,34448.0,2.19961788]
[1625631021033,1.4914133,34449.0,34448.0,2.20414214]
[1625631021157,2.68710621,34449.0,34448.0,0.00452426]
[1625631021276,2.68710621,34449.0,34447.0,1.01563112]
[1625631021575,1.02490767,34448.0,34446.0,1.18462769]
[1625631021995,1.02490767,34448.0,34447.0,1.02020599]
[1625631022777,1.26548311,34448.0,34447.0,1.02020599]
[1625631023682,0.24057544,34448.0,34447.0,2.20456147]
[1625631023923,1.26553167,34448.0,34447.0,2.20456147]
[1625631025789,1.26553167,34448.0,34447.0,1.02020599]
[1625631027171,2.46142993,34448.0,34447.0,1.02020599]
[1625631027290,2.79243993,34448.0,34447.0,1.02020599]
[1625631027950,1.59654167,34448.0,34447.0,1.02020599]
[1625631028552,1.26553167,34448.0,34447.0,2.20500722]
[1625631028972,1.27878029,34448.0,34447.0,2.20500722]
[1625631030117,0.25382406,34448.0,34447.0,2.20500722]
[1625631030656,0.24057544,34448.0,34447.0,2.20500722]
[1625631031439,1.27905289,34448.0,34447.0,2.20500722]
[1625631031922,1.27905289,34448.0,34447.0,2.8812074]
[1625631031923,1.96259411,34448.0,34447.0,2.8812074]
[1625631032342,1.96259411,34448.0,34447.0,1.69640617]
[1625631036489,1.96259411,34448.0,34447.0,2.88109791]
[1625631036609,0.93736519,34448.0,34447.0,1.86541648]
[1625631036729,0.93736519,34448.0,34447.0,2.87593151]
[1625631036908,0.93736519,34448.0,34447.0,4.23374092]
[1625631037089,0.92411666,34448.0,34447.0,4.23374092]
[1625631040095,0.24057544,34448.0,34447.0,4.23374092]
[1625631040394,0.92403152,34448.0,34447.0,2.88045085]
[1625631040514,1.15773662,34448.0,34447.0,2.88045085]
[1625631040635,2.18284105,34448.0,34447.0,2.88045085]
[1625631042022,2.18284105,34448.0,34447.0,1.86541126]
[1625631042023,4.74591492,34448.0,34447.0,1.86541126]
[1625631042140,4.74591492,34448.0,34447.0,0.68071952]
[1625631042263,4.74591492,34448.0,34447.0,0.00451934]
[1625631042981,4.74591492,34448.0,34447.0,0.34340004]
[1625631043466,6.28370675,34448.0,34447.0,0.00451934]
[1625631043703,4.74591492,34448.0,34447.0,0.00451934]
[1625631044005,6.28374629,34448.0,34447.0,0.00451934]
[1625631044244,6.28374629,34448.0,34446.0,0.00452043]
[1625631044488,5.81002868,34447.0,34446.0,0.00452043]
[1625631044608,5.82329594,34447.0,34445.0,0.00452048]
[1625631044850,0.2538429,34446.0,34445.0,0.00452048]
[1625631044971,6.06391359,34446.0,34445.0,0.00452048]
[1625631045094,4.52600898,34446.0,34445.0,0.00452048]
[1625631046835,4.52600898,34446.0,34442.0,0.67860231]
[1625631047017,2.90447796,34443.0,34442.0,0.67860231]
[1625631047195,2.90447796,34443.0,34423.0,2.03518015]
[1625631047196,4.27124561,34443.0,34440.0,0.67874292]
[1625631047315,4.28452597,34443.0,34440.0,0.67874292]
[1625631047496,2.9038604,34441.0,34440.0,0.67874292]
[1625631047617,3.1828904,34441.0,34440.0,0.67874292]
[1625631047855,3.1828904,34441.0,34440.0,0.68325839]
[1625631047976,4.54989335,34441.0,34440.0,0.68325839]
[1625631048697,4.56317381,34441.0,34440.0,0.00451547]
[1625631048879,5.04432469,34441.0,34440.0,0.00451547]
[1625631049478,5.03104423,34441.0,34440.0,0.00451547]
[1625631049839,3.66404128,34441.0,34440.0,0.68330651]
[1625631050319,3.66404128,34441.0,34440.0,1.70158492]
[1625631051644,3.66404128,34441.0,34440.0,0.68330651]
[1625631052005,3.66404128,34441.0,34440.0,0.67879104]
[1625631052907,5.03109817,34441.0,34440.0,0.67879104]
[1625631053269,3.66404128,34441.0,34440.0,0.67879104]
[1625631055192,5.03107402,34441.0,34440.0,0.67879104]
[1625631060362,5.03107402,34441.0,34439.0,0.67951514]
[1625631060781,2.90537635,34440.0,34439.0,0.67951514]
[1625631060901,3.14595179,34440.0,34439.0,0.67951514]
[1625631061201,4.51311505,34440.0,34439.0,0.67951514]
[1625631061501,4.51311505,34440.0,34438.0,0.67976906]
[1625631061804,4.78527936,34439.0,34438.0,0.67976906]
[1625631062761,4.78527936,34439.0,34438.0,0.47876906]
[1625631062882,4.78527936,34439.0,34436.0,1.0196279]
[1625631063003,0.24057544,34437.0,34436.0,1.0196279]
[1625631063122,3.82887943,34437.0,34434.0,1.02013501]
[1625631063362,2.22137559,34435.0,34434.0,1.02013501]
[1625631064025,5.93587559,34435.0,34434.0,1.02013501]
[1625631065044,6.17645103,34435.0,34434.0,1.02013501]
[1625631065889,6.17645103,34435.0,34433.0,1.01949264]
[1625631066066,1.02470334,34434.0,34433.0,1.01949264]
[1625631066188,1.24088334,34434.0,34433.0,1.01949264]
[1625631066970,1.48145878,34434.0,34433.0,1.01949264]
[1625631067509,1.48145878,34434.0,34433.0,1.02400723]
[1625631067752,1.48145878,34434.0,34432.0,1.0196094]
[1625631067992,1.02437357,34433.0,34432.0,1.0196094]
[1625631068411,1.02437357,34433.0,34432.0,1.02412422]
[1625631068769,1.02437357,34433.0,34432.0,1.0196094]
[1625631068951,1.02437357,34433.0,34431.0,1.01938873]
[1625631069072,1.26494901,34433.0,34431.0,1.01938873]
[1625631069374,1.26494901,34433.0,34432.0,1.01919496]
[1625631069612,0.24057544,34433.0,34432.0,1.02370969]
[1625631071657,1.2644915,34433.0,34432.0,0.00451473]
[1625631073043,1.2644915,34433.0,34431.0,1.465e-05]
[1625631073171,1.2644915,34433.0,34427.0,1.35892609]
[1625631073172,3.82391318,34433.0,34427.0,1.02011598]
[1625631073403,3.82391318,34433.0,34415.0,1.94076875]
[1625631073404,1.19448781,34429.0,34423.0,1.19107189]
[1625631073584,1.19448781,34429.0,34428.0,0.00451561]
[1625631073706,1.36510455,34430.0,34428.0,0.00451561]
[1625631073942,1.1945395,34429.0,34423.0,0.00451567]
[1625631074064,1.19461764,34427.0,34423.0,0.00451567]
[1625631074185,1.46915764,34427.0,34423.0,0.00451567]
[1625631074725,4.6053,34424.0,34422.0,0.0045166]
[1625631074966,4.6053,34424.0,34423.0,0.00451663]
[1625631075146,5.32702632,34424.0,34423.0,0.00451663]
[1625631075267,5.32702632,34424.0,34421.0,0.00451667]
[1625631075748,6.52111887,34424.0,34421.0,0.00451667]
[1625631076049,6.52111887,34424.0,34418.0,0.00451713]
[1625631076712,1.19412573,34423.0,34418.0,0.00451713]
[1625631077011,1.19333445,34421.0,34418.0,0.00451713]
[1625631077133,0.86935088,34419.0,34412.0,1.19306378]
[1625631077498,0.86935088,34419.0,34411.0,1.19314309]
[1625631077675,2.06266089,34419.0,34411.0,1.19314309]
[1625631078880,0.86935088,34419.0,34410.0,1.19220839]
[1625631079057,0.72172632,34411.0,34410.0,1.19220839]
[1625631079178,1.03110632,34411.0,34409.0,1.19221513]
[1625631079840,1.03110632,34411.0,34408.0,1.19133516]
[1625631081043,1.03110632,34411.0,34406.0,1.1906678]
[1625631081162,0.24057544,34407.0,34406.0,1.1906678]
[1625631083988,0.24057544,34407.0,34403.0,1.1900492]
[1625631084710,0.24057544,34407.0,34402.0,1.19011715]
[1625631085128,0.48115088,34403.0,34402.0,1.19011715]
[1625631085248,0.70050088,34403.0,34402.0,1.19011715]
[1625631089581,0.70050088,34403.0,34401.0,1.18826853]
[1625631090070,0.70050088,34403.0,34400.0,1.18787945]
[1625631090544,0.70050088,34403.0,34399.0,1.18803223]
[1625631090786,0.70050088,34403.0,34398.0,1.18809348]
[1625631091205,0.48115088,34399.0,34398.0,1.18809348]
[1625631091806,0.48115088,34399.0,34398.0,1.192613]
[1625631092046,0.48115088,34399.0,34398.0,1.18809348]
[1625631093429,0.48115088,34399.0,34398.0,1.19261027]
[1625631094032,0.48115088,34399.0,34398.0,1.18809348]
[1625631094451,0.48115088,34399.0,34398.0,1.19261025]
[1625631096437,0.48115088,34399.0,34398.0,2.54950728]
[1625631097162,0.48115088,34399.0,34398.0,1.19261025]
[1625631098361,0.48115088,34399.0,34398.0,0.00451677]
[1625631099142,0.48115088,34399.0,34396.0,0.00451735]
[1625631101424,0.36018436,34397.0,34396.0,0.00451735]
[1625631101545,0.36018436,34397.0,34396.0,1.19233463]
[1625631101664,0.36018436,34397.0,34396.0,0.00451735]
[1625631103287,0.36018436,34397.0,34396.0,1.02239878]
[1625631103469,0.36018436,34397.0,34396.0,2.21014476]
[1625631104560,0.01181436,34397.0,34396.0,2.21014476]
[1625631106962,0.01181436,34397.0,34396.0,3.56739129]
[1625631107262,0.01181436,34397.0,34396.0,2.21014476]
[1625631108283,0.23054436,34397.0,34396.0,2.21014476]
[1625631108885,0.23054436,34397.0,34396.0,3.56756407]
[1625631111467,0.23054436,34397.0,34396.0,2.21014476]
[1625631112851,0.23054436,34397.0,34396.0,3.56810059]
[1625631113331,0.23054436,34397.0,34396.0,2.21014476]
[1625631113751,0.01181436,34397.0,34396.0,2.21014476]
[1625631113874,0.01181436,34397.0,34396.0,3.56843992]
[1625631114653,0.01181436,34397.0,34396.0,2.21014476]
[1625631115378,0.01181436,34397.0,34396.0,3.56881485]
[1625631117421,0.01181436,34397.0,34396.0,3.80939029]
[1625631118262,0.24057544,34403.0,34396.0,3.80939029]
[1625631118501,0.24057544,34403.0,34401.0,1.01985772]
[1625631118981,0.24057544,34403.0,34402.0,0.00451152]
[1625631119283,0.24057544,34403.0,34402.0,1.02497544]
[1625631119524,0.24057544,34403.0,34402.0,1.26555088]
[1625631120968,0.24057544,34403.0,34402.0,0.24508696]
[1625631121271,0.24057544,34403.0,34402.0,1.26553215]
[1625631121809,0.24057544,34403.0,34402.0,0.24508696]
[1625631122650,0.24057544,34403.0,34402.0,1.26606376]
[1625631122889,0.24057544,34403.0,34402.0,1.9467144]
[1625631125951,0.24057544,34403.0,34402.0,3.13918858]
[1625631127875,0.24057544,34403.0,34402.0,1.9467144]
[1625631128775,0.24057544,34403.0,34402.0,3.14097024]
[1625631129073,0.57958544,34403.0,34402.0,2.9003948]
[1625631129253,0.57958544,34403.0,34402.0,1.70613896]
[1625631129494,0.59289499,34403.0,34402.0,0.68516216]
[1625631130576,0.57958544,34403.0,34402.0,0.68516216]
[1625631130880,1.25714422,34403.0,34402.0,1.70991699]
[1625631131117,0.57958544,34403.0,34402.0,1.70991699]
[1625631131358,1.27030312,34403.0,34402.0,1.70991699]
[1625631132381,1.25699368,34403.0,34402.0,1.70991699]
[1625631132682,0.57958544,34403.0,34402.0,1.70991699]
[1625631132983,2.26571744,34403.0,34402.0,1.70991699]
[1625631133766,2.27902737,34403.0,34402.0,1.70991699]
[1625631134544,2.26571744,34403.0,34402.0,1.70991699]
[1625631134968,2.26571744,34403.0,34402.0,2.9078026]
[1625631137069,2.26571744,34403.0,34402.0,4.2774339]
[1625631141219,1.92670744,34403.0,34402.0,4.2774339]
[1625631141520,1.92670744,34403.0,34402.0,8.5185339]
[1625631141639,1.92670744,34403.0,34402.0,8.99968478]
[1625631141760,0.91506196,34403.0,34402.0,8.99968478]
[1625631142000,0.91506196,34403.0,34402.0,10.54141703]
[1625631142600,0.91506196,34403.0,34402.0,6.30031703]
[1625631143021,1.93171576,34403.0,34402.0,4.75858478]
[1625631143262,0.91506196,34403.0,34402.0,4.51800934]
[1625631143504,1.93169608,34403.0,34402.0,4.51800934]
[1625631143746,0.91506196,34403.0,34402.0,6.0600929]
[1625631144949,0.24057544,34403.0,34402.0,6.0600929]
[1625631151447,0.41038477,34403.0,34402.0,6.0600929]
[1625631151928,0.41038477,34403.0,34402.0,6.57435413]
[1625631153849,0.74960742,34403.0,34402.0,6.57435413]
[1625631154451,2.44512386,34403.0,34402.0,6.57435413]
[1625631154871,6.90842386,34403.0,34402.0,6.57435413]
[1625631155171,6.90842386,34403.0,34402.0,5.03227057]
[1625631155291,6.90842386,34403.0,34402.0,4.79169513]
[1625631155833,8.09444726,34403.0,34402.0,4.79169513]
[1625631156615,6.90842386,34403.0,34402.0,4.79169513]
[1625631156914,8.09461854,34403.0,34402.0,4.79169513]
[1625631157995,6.90842386,34403.0,34402.0,4.79169513]
[1625631158415,6.90842386,34403.0,34402.0,6.33457911]
[1625631158595,5.8911479,34403.0,34402.0,6.33457911]
[1625631158835,6.90852789,34403.0,34402.0,6.33457911]
[1625631159137,6.90852789,34403.0,34402.0,4.79169513]
[1625631159254,2.44522789,34403.0,34402.0,4.79169513]
[1625631159375,3.63173351,34403.0,34402.0,4.79169513]
[1625631159620,2.44522789,34403.0,34402.0,6.33465346]
[1625631159739,2.44522789,34403.0,34402.0,6.5752289]
[1625631160577,1.4278479,34403.0,34402.0,6.5752289]
[1625631160818,2.44619191,34403.0,34402.0,6.5752289]
[1625631162802,2.71596191,34403.0,34402.0,6.5752289]
[1625631164003,2.71596191,34403.0,34402.0,5.03227057]
[1625631164545,3.90511585,34403.0,34402.0,5.03227057]
[1625631165024,2.71596191,34403.0,34402.0,5.03227057]
[1625631165325,2.71596191,34403.0,34402.0,6.57524972]
[1625631165806,2.71596191,34403.0,34402.0,5.03227057]
[1625631166047,2.71596191,34403.0,34402.0,6.57523177]
[1625631166287,2.71596191,34403.0,34402.0,5.03227057]
[1625631166527,2.71596191,34403.0,34402.0,6.57525717]
[1625631167427,2.71596191,34403.0,34402.0,5.03227057]
[1625631168209,2.71596191,34403.0,34402.0,6.57525759]
[1625631171030,2.71596191,34403.0,34402.0,5.03227057]
[1625631171513,3.9055786,34403.0,34402.0,5.03227057]
[1625631174286,2.71596191,34403.0,34402.0,5.03227057]
[1625631174405,2.44619191,34403.0,34402.0,5.03227057]
[1625631174527,3.63554869,34403.0,34402.0,5.03227057]
[1625631175067,2.44619191,34403.0,34402.0,6.5752928]
[1625631177350,2.44619191,34403.0,34402.0,5.03227057]
[1625631178373,3.63548075,34403.0,34402.0,5.03227057]
[1625631179275,2.44619191,34403.0,34402.0,5.03227057]
[1625631179937,3.63515124,34403.0,34402.0,5.03227057]
[1625631180659,2.44619191,34403.0,34402.0,5.03227057]
[1625631180901,3.63475879,34403.0,34402.0,5.03227057]
[1625631182943,2.44619191,34403.0,34402.0,5.03227057]
[1625631183243,3.63505993,34403.0,34402.0,5.03227057]
[1625631183484,2.44619191,34403.0,34402.0,5.03227057]
[1625631183786,3.63510012,34403.0,34402.0,5.03227057]
[1625631184326,3.6484896,34403.0,34402.0,5.03227057]
[1625631189436,3.40791416,34403.0,34402.0,5.03227057]
[1625631189556,3.35832468,34403.0,34402.0,5.03227057]
[1625631189678,0.51034345,34404.0,34402.0,6.57533156]
[1625631189857,0.51034345,34404.0,34403.0,0.48115088]
[1625631189979,0.51039411,34405.0,34403.0,6.30956702]
[1625631190096,0.51039411,34405.0,34403.0,6.31405473]
[1625631190216,0.17018804,34405.0,34404.0,5.82838605]
[1625631190397,0.17018804,34405.0,34404.0,5.83287383]
[1625631190516,0.51038759,34405.0,34404.0,5.83287383]
[1625631190817,0.34019955,34405.0,34404.0,5.83287383]
[1625631190996,0.17021473,34406.0,34404.0,5.83287383]
[1625631191297,0.68024212,34407.0,34404.0,5.83287383]
[1625631191298,0.68050278,34408.0,34405.0,6.09363595]
[1625631191478,0.68050278,34408.0,34407.0,5.82820414]
[1625631191719,0.68050278,34408.0,34407.0,5.83269167]
[1625631191836,0.68050278,34408.0,34407.0,6.07326711]
[1625631191958,0.68074469,34409.0,34407.0,6.07326711]
[1625631192258,0.68074469,34409.0,34408.0,5.82652855]
[1625631192559,0.68074469,34409.0,34408.0,9.86182224]
[1625631193759,0.68060365,34410.0,34408.0,9.86182224]
[1625631193878,0.68060365,34410.0,34409.0,0.24057544]
[1625631194059,0.68060365,34410.0,34409.0,6.06543428]
[1625631194179,0.68060365,34410.0,34409.0,6.06992766]
[1625631195924,0.92117909,34410.0,34409.0,6.06992766]
[1625631196163,0.92117909,34410.0,34409.0,4.52805326]
[1625631196164,3.13049468,34410.0,34409.0,4.52805326]
[1625631196344,4.48926077,34410.0,34409.0,3.15749824]
[1625631196643,8.37646077,34410.0,34409.0,3.15749824]
[1625631197303,8.37646077,34410.0,34409.0,1.9582626]
[1625631197904,8.61703621,34410.0,34409.0,1.9582626]
[1625631198506,4.72983621,34410.0,34409.0,1.9582626]
[1625631198749,4.72983621,34410.0,34409.0,3.15749595]
[1625631199646,4.72983621,34410.0,34409.0,1.9582626]
[1625631200006,4.96700621,34410.0,34409.0,1.9582626]
[1625631200186,4.96700621,34410.0,34409.0,1.95376922]
[1625631200311,4.96700621,34410.0,34409.0,1.71319378]
[1625631202953,4.980375,34410.0,34409.0,1.71319378]
[1625631203074,6.50716947,34410.0,34408.0,0.6853531]
[1625631203315,5.7654776,34409.0,34407.0,0.68540468]
[1625631203435,5.778847,34409.0,34407.0,0.68540468]
[1625631203614,5.76501495,34408.0,34407.0,0.68540468]
[1625631203734,5.77838435,34408.0,34407.0,0.68540468]
[1625631204035,5.77838435,34408.0,34406.0,0.68541006]
[1625631204335,4.23246493,34407.0,34406.0,0.68541006]
[1625631205779,4.23246493,34407.0,34406.0,1.71343265]
[1625631206317,4.23246493,34407.0,34406.0,1.71792804]
[1625631206619,4.23246493,34407.0,34406.0,2.91721918]
[1625631208840,4.23246493,34407.0,34406.0,2.91272379]
[1625631208961,4.23246493,34407.0,34406.0,1.71343265]